[Event "*** Titled Tuesday Blitz"]
[Site "Chess.com"]
[Date "2021.04.27"]
[Round "11"]
[White "attack2mateU"]
[Black "MITerryble"]
[Result "1-0"]
[WhiteElo "2784"]
[BlackElo "2889"]
[TimeControl "180+1"]
[EndTime "12:04:54 PDT"]
[Termination "attack2mateU won on time"]

1. e4 {[%clk 0:02:58.2]} 1... e6 {[%clk 0:03:00.3]} 2. d4 {[%clk 0:02:58.3]}
2... d5 {[%clk 0:03:00.8]} 3. Nc3 {[%clk 0:02:58.9]} 3... Nf6 {[%clk 0:03:00.9]}
4. e5 {[%clk 0:02:59.2]} 4... Nfd7 {[%clk 0:03:00.7]} 5. f4 {[%clk 0:02:59.9]}
5... c5 {[%clk 0:03:01.2]} 6. Nf3 {[%clk 0:03:00.5]} 6... Nc6 {[%clk 0:03:01.3]}
7. Be3 {[%clk 0:03:01.2]} 7... Be7 {[%clk 0:03:01.7]} 8. Qd2 {[%clk 0:03:01.1]}
8... O-O {[%clk 0:03:01.6]} 9. dxc5 {[%clk 0:03:01.4]} 9... Qa5 {[%clk
0:03:00.4]} 10. O-O-O {[%clk 0:02:59.4]} 10... b6 {[%clk 0:02:58.3]} 11. Bb5
{[%clk 0:02:58.4]} 11... Nb4 {[%clk 0:02:58.3]} 12. a3 {[%clk 0:02:58.3]} 12...
bxc5 {[%clk 0:02:57.5]} 13. Kb1 {[%clk 0:02:59]} 13... Rb8 {[%clk 0:02:40.4]}
14. axb4 {[%clk 0:02:44.4]} 14... cxb4 {[%clk 0:02:40.1]} 15. Nxd5 {[%clk
0:02:44.3]} 15... exd5 {[%clk 0:02:39.2]} 16. Bxd7 {[%clk 0:02:43.8]} 16... Bxd7
{[%clk 0:02:40]} 17. Qxd5 {[%clk 0:02:43.9]} 17... Qxd5 {[%clk 0:01:51.3]} 18.
Rxd5 {[%clk 0:02:44.8]} 18... Bc6 {[%clk 0:01:51.8]} 19. Ra5 {[%clk 0:02:43.9]}
19... Rfd8 {[%clk 0:01:45.5]} 20. Rxa7 {[%clk 0:02:31.2]} 20... Bf8 {[%clk
0:01:45.7]} 21. b3 {[%clk 0:02:17.3]} 21... Rbc8 {[%clk 0:01:28.3]} 22. Bb6
{[%clk 0:02:04.7]} 22... Rd5 {[%clk 0:01:15.3]} 23. Nd4 {[%clk 0:01:39.8]} 23...
Bd7 {[%clk 0:01:04.3]} 24. Rb7 {[%clk 0:01:20.8]} 24... h5 {[%clk 0:00:56.8]}
25. Rd1 {[%clk 0:01:17]} 25... Bf5 {[%clk 0:00:53.8]} 26. Kc1 {[%clk 0:00:57]}
26... Be4 {[%clk 0:00:47.5]} 27. Rc7 {[%clk 0:00:52.1]} 27... Rb8 {[%clk
0:00:47.3]} 28. Ba7 {[%clk 0:00:51.7]} 28... Ra8 {[%clk 0:00:47.4]} 29. Re1
{[%clk 0:00:47.3]} 29... Bxg2 {[%clk 0:00:46.9]} 30. e6 {[%clk 0:00:31.7]} 30...
fxe6 {[%clk 0:00:39.1]} 31. Nxe6 {[%clk 0:00:30.9]} 31... Re8 {[%clk 0:00:36.2]}
32. Rg1 {[%clk 0:00:24.5]} 32... Rxe6 {[%clk 0:00:34.1]} 33. Rxg2 {[%clk
0:00:25]} 33... Re1+ {[%clk 0:00:25.4]} 34. Kb2 {[%clk 0:00:24.1]} 34... Rdd1
{[%clk 0:00:20.6]} 35. c4 {[%clk 0:00:23.2]} 35... Rb1+ {[%clk 0:00:17.5]} 36.
Kc2 {[%clk 0:00:23.5]} 36... Ra1 {[%clk 0:00:17.9]} 37. Bd4 {[%clk 0:00:21.1]}
37... Rac1+ {[%clk 0:00:16.3]} 38. Kd3 {[%clk 0:00:19.3]} 38... Rcd1+ {[%clk
0:00:10.8]} 39. Rd2 {[%clk 0:00:19.3]} 39... Rxd2+ {[%clk 0:00:11.2]} 40. Kxd2
{[%clk 0:00:19.6]} 40... Rh1 {[%clk 0:00:12.1]} 41. c5 {[%clk 0:00:17.4]} 41...
Rxh2+ {[%clk 0:00:12.5]} 42. Kd3 {[%clk 0:00:18]} 42... Rh1 {[%clk 0:00:07.6]}
43. Be3 {[%clk 0:00:12.9]} 43... Rd1+ {[%clk 0:00:03.9]} 44. Ke2 {[%clk
0:00:12.6]} 44... Rb1 {[%clk 0:00:03.4]} 45. c6 {[%clk 0:00:06.9]} 45... Rb2+
{[%clk 0:00:03.8]} 46. Bd2 {[%clk 0:00:06]} 46... Rxb3 {[%clk 0:00:04.7]} 47.
Rd7 {[%clk 0:00:06.2]} 47... Rb2 {[%clk 0:00:03]} 48. Kd3 {[%clk 0:00:04.9]}
48... b3 {[%clk 0:00:03.3]} 49. c7 {[%clk 0:00:03.6]} 49... Rc2 {[%clk
0:00:03.2]} 50. Bc3 {[%clk 0:00:04.3]} 50... Rc1 {[%clk 0:00:01.6]} 51. c8=Q
{[%clk 0:00:03.8]} 51... b2 {[%clk 0:00:02.5]} 52. Rxg7+ {[%clk 0:00:04.2]} 1-0

[Event "*** Titled Tuesday Blitz"]
[Site "Chess.com"]
[Date "2021.04.27"]
[Round "11"]
[White "alejogarcia1999"]
[Black "IMRosen"]
[Result "0-1"]
[WhiteElo "2501"]
[BlackElo "2679"]
[TimeControl "180+1"]
[EndTime "12:04:54 PDT"]
[Termination "IMRosen won by resignation"]

1. Nf3 {[%clk 0:03:00.9]} 1... d5 {[%clk 0:02:54.8]} 2. g3 {[%clk 0:03:01.3]}
2... Nf6 {[%clk 0:02:49.9]} 3. Bg2 {[%clk 0:03:01.3]} 3... e6 {[%clk 0:02:48.8]}
4. O-O {[%clk 0:03:01.3]} 4... Be7 {[%clk 0:02:47.8]} 5. c4 {[%clk 0:03:01.5]}
5... O-O {[%clk 0:02:43.5]} 6. cxd5 {[%clk 0:03:01.5]} 6... exd5 {[%clk
0:02:43.1]} 7. d3 {[%clk 0:03:02.4]} 7... Re8 {[%clk 0:02:41.9]} 8. Nc3 {[%clk
0:03:02.4]} 8... c6 {[%clk 0:02:41.7]} 9. e4 {[%clk 0:03:01.6]} 9... dxe4 {[%clk
0:02:40.7]} 10. dxe4 {[%clk 0:03:02.5]} 10... Bg4 {[%clk 0:02:38.4]} 11. h3
{[%clk 0:03:01.6]} 11... Bh5 {[%clk 0:02:37.4]} 12. Qc2 {[%clk 0:02:56.3]} 12...
Bg6 {[%clk 0:02:30]} 13. Nh4 {[%clk 0:02:52.5]} 13... Nfd7 {[%clk 0:02:20.8]}
14. Nxg6 {[%clk 0:02:51.5]} 14... hxg6 {[%clk 0:02:19.4]} 15. Rd1 {[%clk
0:02:41.4]} 15... Qc7 {[%clk 0:02:11.9]} 16. Nd5 {[%clk 0:02:39.6]} 16... Qa5
{[%clk 0:02:06.8]} 17. Nxe7+ {[%clk 0:02:18]} 17... Rxe7 {[%clk 0:02:07]} 18.
Bd2 {[%clk 0:02:17]} 18... Qc7 {[%clk 0:02:02.8]} 19. Bf4 {[%clk 0:02:13.3]}
19... Ne5 {[%clk 0:02:02.1]} 20. Rd2 {[%clk 0:02:02.9]} 20... Nbd7 {[%clk
0:01:56.1]} 21. Rad1 {[%clk 0:02:02.5]} 21... Nf6 {[%clk 0:01:45.1]} 22. Qc3
{[%clk 0:01:55.9]} 22... Rae8 {[%clk 0:01:44.5]} 23. b4 {[%clk 0:01:35.1]} 23...
Qb6 {[%clk 0:01:35.1]} 24. Be3 {[%clk 0:01:32.1]} 24... Qa6 {[%clk 0:01:24.4]}
25. Bc5 {[%clk 0:01:18.1]} 25... Re6 {[%clk 0:01:15.5]} 26. f3 {[%clk
0:00:46.4]} 26... g5 {[%clk 0:00:56.7]} 27. Bd4 {[%clk 0:00:32.2]} 27... Nh5
{[%clk 0:00:40.8]} 28. Kh2 {[%clk 0:00:27.4]} 28... Qb5 {[%clk 0:00:27.5]} 29.
Qb3 {[%clk 0:00:24.4]} 29... a5 {[%clk 0:00:08.5]} 30. Bf1 {[%clk 0:00:21.9]}
30... Qxb4 {[%clk 0:00:08.3]} 31. Qxb4 {[%clk 0:00:21.8]} 31... axb4 {[%clk
0:00:09.2]} 32. Bxe5 {[%clk 0:00:21.2]} 32... Rxe5 {[%clk 0:00:10.1]} 33. Rd7
{[%clk 0:00:21.2]} 33... R5e7 {[%clk 0:00:10.3]} 34. Bc4 {[%clk 0:00:20.6]}
34... Nf6 {[%clk 0:00:10.1]} 35. R7d3 {[%clk 0:00:19.1]} 35... b5 {[%clk
0:00:09.3]} 36. Bb3 {[%clk 0:00:19.1]} 36... c5 {[%clk 0:00:09.8]} 37. Bd5
{[%clk 0:00:19.4]} 37... c4 {[%clk 0:00:09.1]} 38. Rd4 {[%clk 0:00:19.5]} 38...
Ra7 {[%clk 0:00:08.7]} 39. R4d2 {[%clk 0:00:16]} 39... Nxd5 {[%clk 0:00:08.7]}
40. exd5 {[%clk 0:00:15.3]} 40... Rea8 {[%clk 0:00:09.2]} 41. d6 {[%clk
0:00:12.8]} 41... Rxa2 {[%clk 0:00:09.1]} 42. d7 {[%clk 0:00:13.3]} 42... Rxd2+
{[%clk 0:00:08.9]} 43. Rxd2 {[%clk 0:00:14.2]} 43... Rd8 {[%clk 0:00:09.4]} 44.
Rd5 {[%clk 0:00:14.3]} 44... b3 {[%clk 0:00:04.3]} 45. Kg2 {[%clk 0:00:08.4]}
45... b2 {[%clk 0:00:03.8]} 46. Rxb5 {[%clk 0:00:08.3]} 46... c3 {[%clk
0:00:04.4]} 47. Rc5 {[%clk 0:00:04.3]} 47... b1=Q {[%clk 0:00:04.3]} 48. Rc8
{[%clk 0:00:04.5]} 48... Qc2+ {[%clk 0:00:04.7]} 0-1

[Event "*** Titled Tuesday Blitz"]
[Site "Chess.com"]
[Date "2021.04.27"]
[Round "11"]
[White "Willhaven3"]
[Black "maximych26"]
[Result "0-1"]
[WhiteElo "2468"]
[BlackElo "2327"]
[TimeControl "180+1"]
[EndTime "12:05:02 PDT"]
[Termination "maximych26 won on time"]

1. d4 {[%clk 0:03:00.9]} 1... Nf6 {[%clk 0:02:58]} 2. Nf3 {[%clk 0:03:01.3]}
2... d5 {[%clk 0:02:56.7]} 3. c4 {[%clk 0:03:01.5]} 3... e6 {[%clk 0:02:55.2]}
4. Nc3 {[%clk 0:03:01.9]} 4... Nbd7 {[%clk 0:02:53.7]} 5. cxd5 {[%clk
0:03:00.5]} 5... exd5 {[%clk 0:02:51.1]} 6. Bf4 {[%clk 0:03:00.9]} 6... Bb4
{[%clk 0:02:49.8]} 7. Qb3 {[%clk 0:02:59.1]} 7... c5 {[%clk 0:02:48.3]} 8. e3
{[%clk 0:02:58]} 8... Qa5 {[%clk 0:02:46.4]} 9. a3 {[%clk 0:02:53.2]} 9... Ne4
{[%clk 0:02:43.7]} 10. Rc1 {[%clk 0:02:49.8]} 10... Bxc3+ {[%clk 0:02:36.4]} 11.
bxc3 {[%clk 0:02:48.5]} 11... c4 {[%clk 0:02:36.7]} 12. Qb4 {[%clk 0:02:46.6]}
12... Qxb4 {[%clk 0:02:32]} 13. cxb4 {[%clk 0:02:36.2]} 13... O-O {[%clk
0:02:29.9]} 14. Nd2 {[%clk 0:02:31.3]} 14... Nxd2 {[%clk 0:02:27.5]} 15. Kxd2
{[%clk 0:02:32.2]} 15... a5 {[%clk 0:02:27.5]} 16. b5 {[%clk 0:02:31.8]} 16...
Re8 {[%clk 0:02:22.3]} 17. f3 {[%clk 0:02:26.4]} 17... Nf6 {[%clk 0:02:19.9]}
18. g4 {[%clk 0:02:25]} 18... a4 {[%clk 0:02:18]} 19. Be2 {[%clk 0:02:14.8]}
19... Bd7 {[%clk 0:02:17.1]} 20. Rb1 {[%clk 0:02:13.7]} 20... Ra5 {[%clk
0:02:15.4]} 21. b6 {[%clk 0:02:11.9]} 21... Bc6 {[%clk 0:02:07.5]} 22. Rhc1
{[%clk 0:02:06.3]} 22... Nd7 {[%clk 0:02:05]} 23. g5 {[%clk 0:01:56.7]} 23... f6
{[%clk 0:02:04.4]} 24. h4 {[%clk 0:01:55.9]} 24... Kf7 {[%clk 0:02:04]} 25. Bf1
{[%clk 0:01:45.9]} 25... Rea8 {[%clk 0:02:02.3]} 26. Bh3 {[%clk 0:01:43.9]}
26... Nf8 {[%clk 0:01:58.2]} 27. Bd6 {[%clk 0:01:32.7]} 27... Ne6 {[%clk
0:01:56.6]} 28. Rg1 {[%clk 0:01:25.1]} 28... g6 {[%clk 0:01:54.8]} 29. f4 {[%clk
0:01:17.6]} 29... f5 {[%clk 0:01:40.3]} 30. h5 {[%clk 0:01:15.9]} 30... Rg8
{[%clk 0:01:33.9]} 31. Bg2 {[%clk 0:01:12.4]} 31... Raa8 {[%clk 0:01:29.6]} 32.
Bf3 {[%clk 0:01:11.4]} 32... Rad8 {[%clk 0:01:26.8]} 33. Be5 {[%clk 0:01:10.6]}
33... Rde8 {[%clk 0:01:18.7]} 34. Rh1 {[%clk 0:01:08.7]} 34... Ke7 {[%clk
0:01:09]} 35. Kc3 {[%clk 0:00:56.8]} 35... Nf8 {[%clk 0:01:05.4]} 36. Kb4 {[%clk
0:00:50.4]} 36... Kd7 {[%clk 0:01:04.6]} 37. hxg6 {[%clk 0:00:44.2]} 37... hxg6
{[%clk 0:01:03.6]} 38. Bd1 {[%clk 0:00:43]} 38... Ra8 {[%clk 0:01:01.9]} 39. Rh6
{[%clk 0:00:37.3]} 39... Ke6 {[%clk 0:00:59.1]} 40. Kc3 {[%clk 0:00:34.6]} 40...
Re8 {[%clk 0:00:57.2]} 41. Rb4 {[%clk 0:00:33.1]} 41... Ra8 {[%clk 0:00:56.2]}
42. Bc2 {[%clk 0:00:17.8]} 42... Kf7 {[%clk 0:00:55.1]} 43. Bd6 {[%clk
0:00:13.1]} 43... Ne6 {[%clk 0:00:51.2]} 44. Rh7+ {[%clk 0:00:12.4]} 44... Rg7
{[%clk 0:00:50.6]} 45. Rh6 {[%clk 0:00:11.1]} 45... Rgg8 {[%clk 0:00:50]} 46.
Be5 {[%clk 0:00:10]} 46... Nf8 {[%clk 0:00:48.4]} 47. Rb1 {[%clk 0:00:09.9]}
47... Ke6 {[%clk 0:00:46.9]} 48. Rbh1 {[%clk 0:00:08.3]} 48... Re8 {[%clk
0:00:45.3]} 49. Bc7 {[%clk 0:00:08]} 49... Kf7 {[%clk 0:00:44.2]} 50. Kb4 {[%clk
0:00:07.7]} 50... Ra8 {[%clk 0:00:42.9]} 51. Kc5 {[%clk 0:00:05.7]} 51... Ne6+
{[%clk 0:00:41.9]} 52. Kd6 {[%clk 0:00:06.2]} 52... Nf8 {[%clk 0:00:37.3]} 53.
Rh7+ {[%clk 0:00:05]} 53... Nxh7 {[%clk 0:00:36.4]} 54. Rxh7+ {[%clk 0:00:05.9]}
54... Rg7 {[%clk 0:00:36.1]} 55. Rh6 {[%clk 0:00:05.4]} 55... Rgg8 {[%clk
0:00:32.6]} 56. Kc5 {[%clk 0:00:04.4]} 56... Rh8 {[%clk 0:00:31.3]} 57. Be5
{[%clk 0:00:03.2]} 57... Rxh6 {[%clk 0:00:28.4]} 58. gxh6 {[%clk 0:00:04.1]}
58... Kg8 {[%clk 0:00:28.4]} 59. Kd6 {[%clk 0:00:03.1]} 59... Kh7 {[%clk
0:00:28.4]} 60. Bg7 {[%clk 0:00:03]} 60... Rg8 {[%clk 0:00:26.3]} 61. Ke6 {[%clk
0:00:02.5]} 61... Re8+ {[%clk 0:00:26.1]} 62. Kf7 {[%clk 0:00:02]} 62... Rxe3
{[%clk 0:00:25]} 0-1

[Event "*** Titled Tuesday Blitz"]
[Site "Chess.com"]
[Date "2021.04.27"]
[Round "11"]
[White "Vladyslav_Puchka"]
[Black "ferch1ni"]
[Result "1-0"]
[WhiteElo "2133"]
[BlackElo "2318"]
[TimeControl "180+1"]
[EndTime "12:05:02 PDT"]
[Termination "Vladyslav_Puchka won by checkmate"]

1. d4 {[%clk 0:03:00.9]} 1... c5 {[%clk 0:03:00.9]} 2. d5 {[%clk 0:02:59.9]}
2... Nf6 {[%clk 0:02:56.4]} 3. c4 {[%clk 0:02:59.9]} 3... g6 {[%clk 0:02:55.6]}
4. Nc3 {[%clk 0:02:59.7]} 4... Bg7 {[%clk 0:02:56.1]} 5. e4 {[%clk 0:02:59.6]}
5... d6 {[%clk 0:02:54.8]} 6. g3 {[%clk 0:02:59.2]} 6... e5 {[%clk 0:02:55]} 7.
Bg2 {[%clk 0:02:57.5]} 7... O-O {[%clk 0:02:44.9]} 8. Nge2 {[%clk 0:02:57.3]}
8... Nh5 {[%clk 0:02:41.4]} 9. O-O {[%clk 0:02:56.1]} 9... f5 {[%clk 0:02:31.1]}
10. f4 {[%clk 0:02:52.8]} 10... fxe4 {[%clk 0:02:24.8]} 11. Nxe4 {[%clk
0:02:42.8]} 11... Bg4 {[%clk 0:02:21.6]} 12. h3 {[%clk 0:02:35]} 12... Bxe2
{[%clk 0:02:09.5]} 13. Qxe2 {[%clk 0:02:33.2]} 13... exf4 {[%clk 0:02:09.3]} 14.
Bxf4 {[%clk 0:02:30]} 14... Nxf4 {[%clk 0:02:07.8]} 15. Rxf4 {[%clk 0:02:24.7]}
15... Rxf4 {[%clk 0:02:03.4]} 16. gxf4 {[%clk 0:02:25.6]} 16... Na6 {[%clk
0:02:01.9]} 17. a3 {[%clk 0:02:23.7]} 17... Nc7 {[%clk 0:01:57.9]} 18. Ng5
{[%clk 0:02:19.2]} 18... Qf6 {[%clk 0:01:52.7]} 19. Ne6 {[%clk 0:02:11.8]} 19...
Re8 {[%clk 0:01:24.4]} 20. Qd2 {[%clk 0:01:17.9]} 20... Nxe6 {[%clk 0:01:00.8]}
21. dxe6 {[%clk 0:01:16.6]} 21... Qd4+ {[%clk 0:00:55.8]} 22. Qxd4 {[%clk
0:01:14.8]} 22... Bxd4+ {[%clk 0:00:56.7]} 23. Kf1 {[%clk 0:01:12.7]} 23... Kg7
{[%clk 0:00:57.3]} 24. Bd5 {[%clk 0:01:09.7]} 24... Kf6 {[%clk 0:00:53.8]} 25.
Re1 {[%clk 0:01:04.1]} 25... Re7 {[%clk 0:00:45.1]} 26. b3 {[%clk 0:00:47.2]}
26... Kf5 {[%clk 0:00:43.8]} 27. Re4 {[%clk 0:00:43.5]} 27... a6 {[%clk
0:00:38]} 28. a4 {[%clk 0:00:40.2]} 28... b6 {[%clk 0:00:29.6]} 29. Kg2 {[%clk
0:00:40]} 29... Kf6 {[%clk 0:00:27.2]} 30. Kf3 {[%clk 0:00:39.6]} 30... Kf5
{[%clk 0:00:27.2]} 31. Re2 {[%clk 0:00:37.2]} 31... Bg7 {[%clk 0:00:26.7]} 32.
Kg3 {[%clk 0:00:29.5]} 32... Bh6 {[%clk 0:00:24.2]} 33. Rf2 {[%clk 0:00:28.3]}
33... Bg7 {[%clk 0:00:23]} 34. Rf1 {[%clk 0:00:26.4]} 34... Bc3 {[%clk
0:00:21.7]} 35. Kf3 {[%clk 0:00:24.5]} 35... Bd2 {[%clk 0:00:21.5]} 36. Kg3
{[%clk 0:00:24.8]} 36... h6 {[%clk 0:00:18.6]} 37. h4 {[%clk 0:00:24.7]} 37...
Kf6 {[%clk 0:00:18.5]} 38. Kg4 {[%clk 0:00:24.5]} 38... Bc3 {[%clk 0:00:18.6]}
39. f5 {[%clk 0:00:20.6]} 39... h5+ {[%clk 0:00:15.3]} 40. Kh3 {[%clk
0:00:15.1]} 40... g5 {[%clk 0:00:14.9]} 41. hxg5+ {[%clk 0:00:14.8]} 41... Kxg5
{[%clk 0:00:15.8]} 42. Kg3 {[%clk 0:00:12]} 42... Be5+ {[%clk 0:00:15.7]} 43.
Kh3 {[%clk 0:00:12.1]} 43... h4 {[%clk 0:00:15.6]} 44. Be4 {[%clk 0:00:12.3]}
44... Bg3 {[%clk 0:00:13.3]} 45. f6 {[%clk 0:00:10.3]} 45... Rxe6 {[%clk
0:00:13.7]} 46. f7 {[%clk 0:00:10.7]} 46... Rxe4 {[%clk 0:00:13.5]} 47. f8=Q
{[%clk 0:00:11.3]} 47... Be5 {[%clk 0:00:13.8]} 48. Qg8+ {[%clk 0:00:09.9]}
48... Kh6 {[%clk 0:00:12.9]} 49. Qf8+ {[%clk 0:00:04.6]} 49... Kg6 {[%clk
0:00:12.6]} 50. Qf5+ {[%clk 0:00:04.4]} 50... Kg7 {[%clk 0:00:13]} 51. Qxe4
{[%clk 0:00:05]} 51... b5 {[%clk 0:00:13]} 52. cxb5 {[%clk 0:00:04.2]} 52...
axb5 {[%clk 0:00:13.9]} 53. axb5 {[%clk 0:00:05.1]} 53... d5 {[%clk 0:00:13.7]}
54. Qxd5 {[%clk 0:00:05.3]} 54... Bd4 {[%clk 0:00:13.8]} 55. Qe4 {[%clk
0:00:04.8]} 55... Kg8 {[%clk 0:00:12.8]} 56. Qg4+ {[%clk 0:00:05.2]} 56... Kh7
{[%clk 0:00:12.6]} 57. Qxh4+ {[%clk 0:00:06.1]} 57... Kg6 {[%clk 0:00:12.4]} 58.
Qg4+ {[%clk 0:00:06.5]} 58... Kh7 {[%clk 0:00:12.5]} 59. Kg2 {[%clk 0:00:07.2]}
59... Kh6 {[%clk 0:00:12.5]} 60. Rh1# {[%clk 0:00:08.1]} 1-0

[Event "*** Titled Tuesday Blitz"]
[Site "Chess.com"]
[Date "2021.04.27"]
[Round "11"]
[White "elohunter1999"]
[Black "SF-96"]
[Result "0-1"]
[WhiteElo "2494"]
[BlackElo "2617"]
[TimeControl "180+1"]
[EndTime "12:05:03 PDT"]
[Termination "SF-96 won on time"]

1. d4 {[%clk 0:03:00.9]} 1... Nf6 {[%clk 0:03:00.2]} 2. c4 {[%clk 0:03:01]} 2...
g6 {[%clk 0:03:00.8]} 3. Nc3 {[%clk 0:03:00.7]} 3... d5 {[%clk 0:03:01.2]} 4.
cxd5 {[%clk 0:02:56.2]} 4... Nxd5 {[%clk 0:03:02.1]} 5. e4 {[%clk 0:02:55.4]}
5... Nxc3 {[%clk 0:03:02.5]} 6. bxc3 {[%clk 0:02:55.8]} 6... Bg7 {[%clk
0:03:03.4]} 7. Bc4 {[%clk 0:02:49.5]} 7... c5 {[%clk 0:03:03.2]} 8. Ne2 {[%clk
0:02:50]} 8... Nc6 {[%clk 0:03:03.7]} 9. Be3 {[%clk 0:02:50.1]} 9... O-O {[%clk
0:03:04.3]} 10. O-O {[%clk 0:02:50.5]} 10... b6 {[%clk 0:03:04.8]} 11. Rc1
{[%clk 0:02:49.1]} 11... Bb7 {[%clk 0:03:04.6]} 12. Qd2 {[%clk 0:02:47.7]} 12...
Rc8 {[%clk 0:03:02.2]} 13. f3 {[%clk 0:02:44.8]} 13... e6 {[%clk 0:03:01.7]} 14.
Rfd1 {[%clk 0:02:41]} 14... cxd4 {[%clk 0:02:51.7]} 15. cxd4 {[%clk 0:02:40.4]}
15... Qe7 {[%clk 0:02:51.8]} 16. Bh6 {[%clk 0:02:36.4]} 16... Bxh6 {[%clk
0:02:36]} 17. Qxh6 {[%clk 0:02:37.3]} 17... Rfd8 {[%clk 0:02:36.6]} 18. d5
{[%clk 0:02:19.7]} 18... Na5 {[%clk 0:02:30.9]} 19. Bd3 {[%clk 0:01:29.4]} 19...
Rxc1 {[%clk 0:02:25.7]} 20. Rxc1 {[%clk 0:01:26.5]} 20... exd5 {[%clk
0:02:26.1]} 21. Ng3 {[%clk 0:01:26.1]} 21... dxe4 {[%clk 0:02:17.4]} 22. Bxe4
{[%clk 0:01:27]} 22... Rc8 {[%clk 0:01:56.8]} 23. Re1 {[%clk 0:01:15.4]} 23...
Qc5+ {[%clk 0:01:56.6]} 24. Kh1 {[%clk 0:01:14.3]} 24... Qc3 {[%clk 0:01:42.5]}
25. Rd1 {[%clk 0:01:08.9]} 25... Ba6 {[%clk 0:01:32.6]} 26. Nh5 {[%clk
0:00:55.4]} 26... Be2 {[%clk 0:01:15.1]} 27. Rg1 {[%clk 0:00:53.8]} 27... Qe5
{[%clk 0:01:10]} 28. Ng3 {[%clk 0:00:47]} 28... Bb5 {[%clk 0:01:03.9]} 29. Rd1
{[%clk 0:00:46.6]} 29... Nc4 {[%clk 0:00:57.6]} 30. f4 {[%clk 0:00:40]} 30...
Qb2 {[%clk 0:00:46]} 31. f5 {[%clk 0:00:35.3]} 31... Nd2 {[%clk 0:00:31.7]} 32.
f6 {[%clk 0:00:24.8]} 32... Qxf6 {[%clk 0:00:31.7]} 33. Qxd2 {[%clk 0:00:24.2]}
33... h5 {[%clk 0:00:32.2]} 34. Qh6 {[%clk 0:00:23.1]} 34... h4 {[%clk
0:00:28.6]} 35. Nh5 {[%clk 0:00:22.4]} 35... Qh8 {[%clk 0:00:13.4]} 36. Qxh8+
{[%clk 0:00:13.8]} 36... Kxh8 {[%clk 0:00:14.3]} 37. Nf4 {[%clk 0:00:12.6]}
37... Rc4 {[%clk 0:00:14.9]} 38. Bd3 {[%clk 0:00:11.7]} 38... Rd4 {[%clk
0:00:15.3]} 39. Be2 {[%clk 0:00:09.7]} 39... Rb4 {[%clk 0:00:07.2]} 40. Bxb5
{[%clk 0:00:08.1]} 40... Rxb5 {[%clk 0:00:08.1]} 41. h3 {[%clk 0:00:08.6]} 41...
Rb2 {[%clk 0:00:07.8]} 42. a4 {[%clk 0:00:08.3]} 42... Rb4 {[%clk 0:00:07.9]}
43. Nd5 {[%clk 0:00:07]} 43... Rxa4 {[%clk 0:00:08.4]} 44. Re1 {[%clk
0:00:06.8]} 44... Kg7 {[%clk 0:00:07.6]} 45. Re7 {[%clk 0:00:06.7]} 45... Rd4
{[%clk 0:00:08.2]} 46. Nc7 {[%clk 0:00:05.3]} 46... Kf6 {[%clk 0:00:06.9]} 47.
Re8 {[%clk 0:00:04.5]} 47... a5 {[%clk 0:00:05.5]} 48. Rb8 {[%clk 0:00:03.7]}
48... Rd6 {[%clk 0:00:05.3]} 49. Ne8+ {[%clk 0:00:03.8]} 49... Ke7 {[%clk
0:00:04.6]} 50. Nxd6 {[%clk 0:00:04.7]} 50... Kxd6 {[%clk 0:00:05.5]} 51. Rxb6+
{[%clk 0:00:05.6]} 51... Kc5 {[%clk 0:00:06.4]} 52. Rb7 {[%clk 0:00:05.8]} 52...
a4 {[%clk 0:00:06.4]} 53. Rxf7 {[%clk 0:00:05.7]} 53... a3 {[%clk 0:00:06.4]}
54. Rf4 {[%clk 0:00:02.9]} 54... Kb5 {[%clk 0:00:05.3]} 0-1